Cogmind - Beta 10 @@@ ROGUE MODE // 2020.09.09 @ 21:57:25 Player: alice_fexa Result: Destroyed by D-53 Grenadier with Mini Grenade Launcher Performance ------------- Evolutions (0) 0 Regions Visited (2) 400 Robots Destroyed (40) 200 Value Destroyed (633) 633 Prototype IDs (0) 0 Alien Tech Used (0) 0 Bonus (0) 0 TOTAL SCORE: 1233 Bonus ------- None Cogmind --------- Core Integrity 0/250 Matter 253/300 Energy 54/100 System Corruption 0% Temperature Cool (36) Movement Treading (180) Ox1 Location -10/Mines Parts ------- > --- POWER (1) -------- (None) > --- PROPULSION (2) --- Light Treads Compact Wheel > --- UTILITY (2) ------ Large Storage Unit Large Storage Unit > --- WEAPON (2) ------- Particle Gun Spread Laser > --- INVENTORY (16) --- Light Nuclear Core Light Nuclear Core Light Treads Wheel Improved Heat Sink Cooling System Medium Armor Plating Medium Armor Plating Hacking Suite Spread Laser Light Assault Rifle Light Cannon Rocket Launcher Datajack Peak State ------------ > --- POWER ------------ Light Nuclear Core > --- PROPULSION ------- Light Treads Compact Wheel > --- UTILITY ---------- Large Storage Unit Large Storage Unit > --- WEAPON ----------- EM Pulse Gun Rocket Launcher > --- INVENTORY -------- Light Nuclear Core Light Nuclear Core Light Treads Wheel Improved Heat Sink Cooling System Medium Armor Plating Medium Armor Plating Hacking Suite Particle Gun Spread Laser Spread Laser Light Assault Rifle Light Cannon Rocket Launcher Datajack [Rating: 13] Favorites ----------- Power Light Nuclear Core Engine Ion Engine Power Core Light Nuclear Core Propulsion Light Treads Treads Light Treads Wheel Compact Wheel Utility Large Storage Unit Storage Large Storage Unit Weapon Light Assault Rifle Energy Gun Small Laser Ballistic Gun Light Assault Rifle Launcher Rocket Launcher Build | -11 -10 -10 ------- Run | Scr Mat Min Slots Evolved . | . . . Power . | . . . Propulsion . | . . . Utility . | . . . Weapon . | . . . Parts Attached 31 | 7 19 5 Power 7 | 1 6 . Engine 6 | 1 5 . Core 1 | . 1 . Reactor . | . . . Propulsion 9 | 2 6 1 Treads 5 | 1 3 1 Leg . | . . . Wheel 4 | 1 3 . Hover . | . . . Flight . | . . . Utility 5 | 2 3 . Device . | . . . Storage 5 | 2 3 . Processor . | . . . Hackware . | . . . Protection . | . . . Artifact . | . . . Weapon 10 | 2 4 4 Energy Gun 4 | 1 . 3 Energy Cannon . | . . . Ballistic Gun 5 | 1 4 . Ballistic Cannon . | . . . Launcher 1 | . . 1 Special Weapon . | . . . Impact Weapon . | . . . Slashing Weapon . | . . . Piercing Weapon . | . . . Special Melee Weapon . | . . . Unidentified Prototypes . | . . . Parts Lost 4 | . 1 3 Power 1 | . . 1 Propulsion 1 | . 1 . Utility . | . . . Weapon 2 | . . 2 Highest Loss Streak 3 | . 1 3 Average Slot Usage (%) 99 | . 99 98 Engine 7 | . 9 . Core 6 | . 4 13 Treads 13 | . 13 14 Wheel 14 | . 14 14 Storage 28 | . 28 28 Energy Gun 3 | . 2 11 Ballistic Gun 23 | . 25 15 Naked Turns . | . . . Heaviest Build 43 | 16 39 43 Greatest Support 20 | 10 16 20 Greatest Overweight (x) 2 | 1 2 2 Average Overweight (x) 1 | . 1 1 Largest Inventory Capacity 16 | 8 16 16 Average Capacity 13 | 5 13 16 Most Carried 16 | 5 16 16 Average Carried 12 | 2 12 15 Final Capacity 16 | 8 16 16 Final Carried 16 | 5 16 14 Class Distribution -------------------- 58% | Mutant 41% | Scavenger-Mutant Dominant Class ---------------- Mutant | -10/Materials Scavenger-Mutant | -10/Mines Resources | -11 -10 -10 ----------- Run | Scr Mat Min Matter Collected 780 | 276 423 81 Remotely . | . . . Salvage Created 1053 | 72 779 202 Parts 60 | 2 52 6 Haulers Intercepted 2 | . 2 . Recyclers Shooed 1 | . 1 . Parts Field Recycled . | . . . Retrieved Matter . | . . . Parts Self-Destructed . | . . . Prevented . | . . . Kills | -11 -10 -10 ------- Run | Scr Mat Min Combat Hostiles Destroyed 29 | . 14 15 Guns 17 | . 14 3 AOE 12 | . . 12 Classes Destroyed 8 | 1 6 1 Builder 2 | . 1 1 Hauler 2 | . 2 . Recycler 3 | 1 1 1 Operator 2 | . 2 . Watcher 2 | . 2 . Swarmer 3 | . 3 . Grunt 13 | . 11 2 Assembled 13 | . . 13 Best Kill Streak 15 | 1 6 15 Combat Bots Only 13 | . 5 13 Max Kills in Single Turn 5 | 1 2 5 Gunslinging . | . . . Exploded 4 | . . 4 Melee . | . . . Uniques/NPCs Destroyed . | . . . Combat | -11 -10 -10 -------- Run | Scr Mat Min Damage Taken 1200 | . 553 647 Core 257 | . 132 125 Absorbed by Shields . | . . . Core Remaining (%) 100 | 100 . . Volleys Fired 100 | 2 72 26 Largest 2 | 2 2 2 Hottest 130 | 60 60 130 Shots Fired 196 | 4 144 48 Gun 191 | 4 144 43 Cannon . | . . . Launcher 5 | . . 5 Special . | . . . Kinetic 162 | 2 122 38 Thermal 26 | 2 22 2 Explosive 5 | . . 5 Electromagnetic 3 | . . 3 Robot Hit Streak 25 | 2 25 18 Robot Miss Streak 4 | 1 4 3 Penetration Max . | . . . Secondary Targets 3 | . 2 1 Max Gunslinging Chain 1 | . 1 1 Shots Hit Robots 132 | 3 91 38 Core Hits 78 | 2 43 33 Critical Hits 2 | . 1 1 Critical Kills 1 | . 1 . Critical Parts Destroyed 1 | . . 1 Melee Attacks . | . . . Impact . | . . . Slashing . | . . . Piercing . | . . . Sneak Attacks . | . . . Combat Hostiles . | . . . Follow-up Attacks . | . . . Damage Inflicted 2407 | 44 958 1405 Guns 1279 | 44 958 277 Cannons . | . . . Explosions 1128 | . . 1128 Melee . | . . . Ramming . | . . . Kinetic 1039 | 22 793 224 Thermal 209 | 22 165 22 Explosive 1128 | . . 1128 Electromagnetic 31 | . . 31 Impact . | . . . Slashing . | . . . Piercing . | . . . Highest Corruption . | . . . Average Corruption . | . . . Corruption Purged . | . . . Overload Shots . | . . . Overflow Damage 62 | . . 62 Projectiles . | . . . Explosions 62 | . . 62 Melee . | . . . Knockbacks . | . . . Impact . | . . . Kinetic . | . . . Secondary . | . . . Self-Inflicted Damage 163 | . . 163 Shots 4 | . . 4 Rammed . | . . . Targets Rammed . | . . . Kicked . | . . . Crushed . | . . . Highest Temperature 67 | . 54 67 Average Temperature 25 | . 13 40 Received Heat Transfer 466 | . 243 223 Siege Activations . | . . . Robots Corrupted . | . . . Combat Hostiles . | . . . Parts Fried . | . . . Impact Corruptions . | . . . Robots Melted . | . . . Combat Hostiles . | . . . Parts Melted 2 | . 2 . Heat Transferred 472 | 50 375 47 Parts Sabotaged . | . . . Parts Stolen . | . . . Parts Stripped . | . . . Power Chain Reactions . | . . . Missiles Intercepted . | . . . Alert | -11 -10 -10 ------- Run | Scr Mat Min Peak Influence 262 | 5 262 70 Initial 3 | . 3 . Average 62 | 1 64 60 Maximum Alert Level 1 | . 1 . Low Security (%) 92 | 100 90 100 Level 1 7 | . 9 . Level 2 . | . . . Level 3 . | . . . Level 4 . | . . . Level 5 . | . . . High Security . | . . . Max Security . | . . . Squads Dispatched 5 | . 5 . Investigation 3 | . 3 . Extermination . | . . . Reinforcement 2 | . 2 . Assault . | . . . Garrison . | . . . Intercept . | . . . Construction Impeded . | . . . Haulers Reinforced . | . . . Stealth | -11 -10 -10 --------- Run | Scr Mat Min Distress Signals 1 | . . 1 Communications Jammed . | . . . Distress Signals . | . . . Times Spotted 48 | . 27 21 Peak Tracking Total 16 | . 5 16 Tactical Retreats 3 | . 3 . Traps | -11 -10 -10 ------- Run | Scr Mat Min Traps Triggered 5 | . 5 . Indirectly . | . . . Trap Hack Attempts . | . . . Triggered . | . . . Disarmed . | . . . Reprogrammed . | . . . Reused . | . . . Traps Extracted . | . . . Installed 5 | . . 5 Triggered . | . . . Machines | -11 -10 -10 ---------- Run | Scr Mat Min Machines Disabled . | . . . Max in Single Turn . | . . . Machines Sabotaged . | . . . Garrisons Compromised . | . . . Overloaded Fab Kills . | . . . Fab Network Shutdowns . | . . . Hacking | -11 -10 -10 --------- Run | Scr Mat Min Machines Accessed 7 | . 7 . Terminals 5 | . 5 . Fabricators . | . . . Repair Stations 1 | . 1 . Recycling Units 1 | . 1 . Scanalyzers . | . . . Garrison Access . | . . . Total Hacks 23 | . 23 . Successful 12 | . 12 . Failed 11 | . 11 . Catastrophic 2 | . 2 . Database Lockouts . | . . . Manual 18 | . 18 . Terminals 20 | . 20 . Fabricators . | . . . Repair Stations 2 | . 2 . Recycling Units 1 | . 1 . Scanalyzers . | . . . Garrison Access . | . . . Terminal Hacks 5 | . 5 . Unreport Threat 1 | . 1 . Locate Traps 1 | . 1 . Recall Investigation 1 | . 1 . Recall Reinforcements 1 | . 1 . Zone Layout 1 | . 1 . Fabricator Hacks . | . . . Repair Station Hacks 2 | . 2 . Scan Component 1 | . 1 . Repair 1 | . 1 . Recycling Unit Hacks 1 | . 1 . Report Inventory 1 | . 1 . Scanalyzer . | . . . Garrison Access Hacks . | . . . Unauthorized Hacks 4 | . 4 . Terminals 4 | . 4 . Track 1 | . 1 . Botnet 3 | . 3 . Fabricators . | . . . Repair Stations . | . . . Recycling Units . | . . . Scanalyzers . | . . . Garrison Access . | . . . Data Cores Recovered . | . . . Used . | . . . Hacking Detections 6 | . 6 . Full Trace Events . | . . . Feedback Events . | . . . Feedback Blocked . | . . . Robot Schematics Acquired . | . . . Robots Built . | . . . Matter . | . . . Time . | . . . Total Robot Build Rating . | . . . Part Schematics Acquired . | . . . Parts Built . | . . . Matter . | . . . Time . | . . . Total Part Build Rating . | . . . Parts Repaired 1 | . 1 . Time 26 | . 26 . Parts Recycled . | . . . Recycled Matter . | . . . Retrieved Matter . | . . . Retrieved Components . | . . . Parts Scanalyzed . | . . . Part Schematics Acquired . | . . . Parts Damaged . | . . . Bothacking | -11 -10 -10 ------------ Run | Scr Mat Min Used RIF Installer . | . . . Robots Hacked . | . . . Non-combat . | . . . Combat . | . . . Robot Hacks Applied . | . . . Relay Couplers Released . | . . . Robots Rewired . | . . . Allies Hacked . | . . . Hacks Repelled . | . . . Allies | -11 -10 -10 -------- Run | Scr Mat Min Total Allies . | . . . Largest Group . | . . . Highest-Rated Group . | . . . Highest-Rated Ally . | . . . Total Orders . | . . . Ally Attacks . | . . . Total Damage . | . . . Kills . | . . . Allies Corrupted . | . . . Allies Melted . | . . . Intel | -11 -10 -10 ------- Run | Scr Mat Min Robot Analysis Total . | . . . Derelict Logs Recovered . | . . . Drone Launches . | . . . Drone Recoveries . | . . . Exploration | -11 -10 -10 ------------- Run | Scr Mat Min Turns Passed 2059 | 58 1655 346 Spaces Moved 1390 | 42 1132 216 Core 6 | 6 . . Treads 4 | . . 4 Legs . | . . . Wheels 1380 | 36 1132 212 Hover . | . . . Flight . | . . . Fastest Speed 50 | 50 90 110 Average Speed 109 | 85 108 121 Slowest Speed 180 | 100 120 180 Overloaded Moves . | . . . Propulsion Burnouts . | . . . Robots Hopped . | . . . Cave-ins Triggered . | . . . Exploration Rate (%) 47 | 3 97 43 Regions Visited 2 Branch Regions 1 Pre-discovered Areas 1 | . . 1 Known Exits Taken . | . . . Unknown Exits Taken 2 | 1 1 . Scrap Searched . | . . . Spaces Dug . | . . . Terrain Destroyed 64 | . . 64 Melee . | . . . Projectile . | . . . AOE 64 | . . 64 Terrain Rammed . | . . . Walls Destroyed . | . . . Machines Disabled . | . . . Actions | -11 -10 -10 --------- Run | Scr Mat Min Total 1750 | 56 1434 260 Wait 170 | 1 165 4 Move 1388 | 41 1131 216 Hop . | . . . Pick Up 32 | 5 25 2 Fast Attach 15 | 7 8 . Attach 4 | . 2 2 Detach 1 | . 1 . Swap 12 | . 9 3 Drop 23 | . 21 2 Fire 100 | 2 72 26 Melee . | . . . Ram . | . . . Kick . | . . . Crush . | . . . Escape Stasis . | . . . Rewire . | . . . Trap 5 | . . 5 Miscellaneous . | . . . Route ------- -11/Scrapyard -10/Materials (discovered 4 exits: [*Mat x3] / [*Min]) -10/Mines (discovered 1 exit: [*Mat]) History --------- Turn | Location | Event 18 | -11/Scrapyard | Discovered new exit (range 15) 59 | -11/Scrapyard | Entered Materials 301 | -10/Materials | Build established: Mutant 424 | -10/Materials | Discovered new exit (range 4) 470 | -10/Materials | Repaired Assault Rifle 516 | -10/Materials | Discovered new exit (range 7) 665 | -10/Materials | Discovered new exit (range 8) 902 | -10/Materials | Discovered new exit (range 16) 1100 | -10/Materials | Core integrity fell below 50% 1462 | -10/Materials | Build established: Scavenger-Mutant 1714 | -10/Materials | Entered Mines 1757 | -10/Mines | Core integrity fell below 20% 1799 | -10/Mines | Received a Rocket Launcher from a helpful Derelict 1845 | -10/Mines | Found a hidden stash of uninstalled traps 1942 | -10/Mines | Discovered new exit (range 13) 1943 | -10/Mines | Learned location of Storage (-7) 2032 | -10/Mines | Assembled infested the area 2037 | -10/Mines | Assisted by a Guerilla fighting off Assembled 2060 | -10/Mines | Destroyed by D-53 Grenadier with Mini Grenade Launcher Last Messages --------------- 02053_ Rocket Launcher destroyed. 02053_ Destroyed Rocket Launcher. 02053_ Destroyed Asb. Blade. 02053_ Destroyed Asb. Hover Unit. 02053_ as-84580 destroyed. 02053_ Destroyed Asb. Hover Unit. 02053_ as-77895 destroyed. 02053_ Destroyed Asb. F-torch. 02053_ U-05 Engineer destroyed. 02053_ as-86789 destroyed. 02053_ HV Slug penetrates Wall. 02055_ Acquired 33 matter. 02055_ as-42471 destroyed. 02055_ as-63512 destroyed. 02055_ as-90856 destroyed. 02055_ as-31620 destroyed. 02055_ as-34470 destroyed. 02056_ HV Slug penetrates Wall. 02058_ 9L-W7M(h) destroyed. 02059_ The unstable cave ceiling collapses. Map ----- +----------------------------------------------------+ | | | | | | | | | | | | | | | | | | | | | | | | | | | | | ?????????????????????????????????????????????????? | | ?????????????????????????????????????????????????? | | ??????????????????????##??????????????????????###? | | ??????????????????????# ##???????????#####???## # | | ???????????????????#### ##?????##### ##### | | ???????????????????# ###??## | | ????????????????#### # #??# | | ????????? % %% #??# #?# | | ????????????????#### % #???# #?????# | | ??????????????????# #??## #????### | | ???????????????????# #### ###### | | ???????????????????## @! # ## | | ????????????????????## # | | ?????????????????######## #; rt | | ?????????????????# dd " #### | | ?????????? ######### % ######??## | | ????????????????????????????# ##???###### | | ?????????????????????????????# ## #?### ## | | ?????????????????????????????? # #### | | ???????????????????????????????### ##?# | | ?????????????????????????????????###??# | | ??????????????????????????????????????# ## | | ????????????????????????????####??????## #### | | ???????????????????????????## ######## #??## | | ???????????????????????????# ## #???## | | ??????????????????????????## #????# | | ?????????????????????????## ###### | | ?????????????????????????# ## | | ?????????????????????????# #### ### #### | | ?????????????????????????## ##?# #??????# | | ??????????????????????????###### ### ### #??# | | ???????????????????????????????## ## #??# | | ????????????????????????????????# #######??# | | ????????????????????????####????# #???????## | | ???????????????????????## ####### ##??????# | | ???????????????????????# ### #??????# | +----------------------------------------------------+ Best States ------------- Heat Dissipation 25 Energy Generation 14 Energy Capacity 250 Matter Stores 300 Matter Capacity 300 Sight Range 16 Terrain Scan Density 10 Evasion (%) 42 Recoil Reduction 1 Item Schematics ----------------- None Robot Schematics ------------------ None Fabricated ------------ Nothing Alien Tech Used ----------------- None Achievements -------------- None Challenges ------------ None Game ------ Seed ForceQuantumDevice Manual? 0 Play Time 00:20:39 Cumulative 944.8 hours Start 2020.09.09 @ 21:37:03 End 2020.09.09 @ 21:57:25 Sessions 1 Manual Loads 0 Difficulty Rogue Special Mode None Game No. 760 Rogue 720 Adventurer 40 Explorer 0 Win Type - Total 103 Types 56/2/27/2/1/4/11/0/0 Lore% 90 Gallery% 96 Achievement% 79 Wizard Run 0 Options --------- ASCII 0 Keyboard 0 Movement Numpad Keybinds 0 Fullscreen 0 Font 20/Terminus Map View 76x50 Tactical HUD 1 Map Filters NONE Filters NONE Steam 1 RUN: ad4ffce8-cc1f-4d06-84cf-5b95d0df8808